Cogmind - Beta 14 @@@ ROGUE MODE // 2024.10.29 @ 16:43:08 Player: festa Result: Destroyed by D-53 Grenadier with Mini Grenade Launcher Performance ------------- Evolutions (1) 500 Regions Visited (4) 800 Robots Destroyed (8) 40 Value Destroyed (156) 156 Prototype IDs (4) 80 Alien Tech Used (0) 0 Bonus (0) 0 TOTAL SCORE: 1576 Bonus ------- None Cogmind --------- Core Integrity 0/400 Matter 300/300 Energy 89/100 System Corruption 0% Temperature Cool (0) Movement Core (50) Location -9/Mines Parts ------- > --- POWER (1) -------- (None) > --- PROPULSION (3) --- (None) > --- UTILITY (3) ------ Visual Processing Unit Signal Interpreter > --- WEAPON (2) ------- (None) > --- INVENTORY (5) ---- Light Angular Momentum Engine Splice Drone Bay (6/6) Heavy Assault Rifle Autogun Plasma Cutter Peak State ------------ > --- POWER ------------ Light Nuclear Core > --- PROPULSION ------- Improved Flight Unit Improved Flight Unit Improved Flight Unit > --- UTILITY ---------- Visual Processing Unit Sensor Array Signal Interpreter > --- WEAPON ----------- Particle Cannon Heavy Assault Rifle > --- INVENTORY -------- Improved Flight Unit Splice Drone Bay EM Shotgun Grenade Launcher Plasma Cutter [Rating: 21] Favorites ----------- Power Light Ion Engine Engine Light Ion Engine Power Core Light Nuclear Core Propulsion Improved Flight Unit Treads Light Treads Leg Carbon-fiber Leg Wheel Wheel Flight Unit Improved Flight Unit Utility Signal Interpreter Device Sensor Array Processor Signal Interpreter Weapon Particle Cannon Energy Gun EM Pulse Gun Energy Cannon Particle Cannon Ballistic Gun Light Assault Rifle Launcher Grenade Launcher Special Melee Weapon Datajack Build | -11 -10 -10 -9 -9 ------- Run | Yrd Mat Min Mat Min Slots Evolved 2 | . . . 2 . Power . | . . . . . Propulsion 1 | . . . 1 . Utility 1 | . . . 1 . Weapon . | . . . . . Parts Attached 35 | 6 13 3 5 8 Power 6 | 2 1 1 1 1 Engine 5 | 2 1 1 . 1 Core 1 | . . . 1 . Reactor . | . . . . . Propulsion 9 | 2 2 . 2 3 Treads 1 | . . . . 1 Leg 1 | . . . . 1 Wheel 2 | 2 . . . . Hover . | . . . . . Flight 5 | . 2 . 2 1 Utility 9 | . 5 2 1 1 Device 7 | . 4 2 . 1 Storage . | . . . . . Processor 2 | . 1 . 1 . Hackware . | . . . . . Protection . | . . . . . Artifact . | . . . . . Weapon 11 | 2 5 . 1 3 Energy Gun 2 | 1 . . . 1 Energy Cannon 2 | . 2 . . . Ballistic Gun 5 | 1 2 . 1 1 Ballistic Cannon . | . . . . . Launcher 1 | . . . . 1 Special Weapon . | . . . . . Impact Weapon . | . . . . . Slashing Weapon . | . . . . . Piercing Weapon . | . . . . . Special Melee Weapon 1 | . 1 . . . Unidentified Prototypes 2 | . 1 1 . . Parts Lost 14 | . 1 . 1 12 Power 4 | . 1 . 1 2 Propulsion 4 | . . . . 4 Utility 2 | . . . . 2 Weapon 4 | . . . . 4 Highest Loss Streak 8 | . 1 . 1 8 To Critical Strikes . | . . . . . Average Slot Usage (%) 86 | . 78 91 98 74 Engine 5 | . 3 5 9 1 Wheel 1 | . 4 . . . Flight 26 | . 23 28 33 20 Device 12 | . 13 14 11 9 Processor 14 | . 5 14 21 22 Energy Cannon 10 | . 7 14 11 5 Ballistic Gun 11 | . 14 14 11 4 Special Melee Weapon 1 | . 5 . . . Peak Build Rating 21 | 5 14 18 21 21 Average Rating 13 | 3 10 12 18 15 On Entrance 10 | . 5 12 13 21 Naked Turns . | . . . . . Heaviest Build 14 | 8 10 9 13 14 Greatest Support 20 | 20 20 10 15 20 Greatest Overweight (x) 2 | . . . . 2 Average Overweight (x) . | . . . . . Largest Inventory Capacity 5 | 5 5 5 5 5 Average Capacity 5 | 5 5 5 5 5 Most Carried 5 | 4 5 5 5 5 Average Carried 4 | 2 4 4 4 4 Final Capacity 5 | 5 5 5 5 5 Final Carried 5 | 4 5 5 5 5 Class Distribution -------------------- 71% | Mutant 26% | Scout Dominant Class ---------------- Mutant | -10/Materials Mutant | -10/Mines Scout | -9/Materials Mutant | -9/Mines Resources | -11 -10 -10 -9 -9 ----------- Run | Yrd Mat Min Mat Min Matter Collected 553 | 262 87 81 52 71 Remotely . | . . . . . Salvage Created 166 | 36 87 21 . 22 Parts 17 | 1 13 3 . . Haulers Intercepted . | . . . . . Recyclers Shooed . | . . . . . Parts Field Recycled . | . . . . . Retrieved Matter . | . . . . . Parts Self-Destructed . | . . . . . Prevented . | . . . . . Kills | -11 -10 -10 -9 -9 ------- Run | Yrd Mat Min Mat Min Combat Hostiles Destroyed 5 | 1 3 . . 1 Guns 2 | 1 1 . . . Cannons 3 | . 2 . . 1 Classes Destroyed 6 | 1 3 1 . 1 Tunneler 1 | . . 1 . . Operator 1 | . 1 . . . Watcher 1 | . 1 . . . Swarmer 3 | . 3 . . . Grunt 1 | 1 . . . . Demolisher 1 | . . . . 1 Best Kill Streak 3 | 1 3 1 . 1 Combat Bots Only 3 | 1 3 . . 1 Max Kills in Single Turn 1 | 1 1 1 . 1 Gunslinging . | . . . . . Exploded . | . . . . . Melee . | . . . . . Uniques/NPCs Destroyed . | . . . . . Combat | -11 -10 -10 -9 -9 -------- Run | Yrd Mat Min Mat Min Hostile Shots Fired 108 | 2 22 1 22 61 Missed 32 | 1 5 1 10 15 Damage Taken 1376 | 12 137 . 260 967 Core 464 | . 51 . 62 351 Absorbed by Shields 68 | . . . . 68 Regen/Repaired (Parts) 60 | . . . 60 . Core Remaining (%) 89 | 100 . 79 . . Volleys Fired 25 | 2 11 2 3 7 Largest 2 | 2 2 2 2 2 Hottest 98 | 60 88 88 91 98 Shots Fired 47 | 4 22 4 6 11 Gun 23 | 4 11 2 3 3 Cannon 23 | . 11 2 3 7 Launcher 1 | . . . . 1 Special . | . . . . . Kinetic 21 | 2 11 2 3 3 Thermal 23 | . 11 2 3 7 Explosive 1 | . . . . 1 Electromagnetic 2 | 2 . . . . Robot Hit Streak 5 | 2 5 4 2 4 Robot Miss Streak 3 | 1 3 1 2 3 Penetration Max . | . . . . . Secondary Targets . | . . . . . Shots Hit Robots 24 | 2 11 3 3 5 Core Hits 14 | 2 8 2 . 2 Critical Kills . | . . . . . Critical Parts Destroyed . | . . . . . Critical Strikes . | . . . . . Melee Attacks . | . . . . . Impact . | . . . . . Slashing . | . . . . . Piercing . | . . . . . Sneak Attacks . | . . . . . Combat Hostiles . | . . . . . Follow-up Attacks . | . . . . . Damage Inflicted 385 | 21 166 35 50 113 Guns 122 | 20 44 14 30 14 Cannons 224 | . 122 21 20 61 Explosions 38 | . . . . 38 Melee . | . . . . . Ramming 1 | 1 . . . . Kinetic 109 | 7 44 14 30 14 Thermal 224 | . 122 21 20 61 Explosive 38 | . . . . 38 Electromagnetic 13 | 13 . . . . Impact . | . . . . . Slashing . | . . . . . Piercing . | . . . . . Highest Corruption . | . . . . . Average Corruption . | . . . . . Corruption Purged . | . . . . . Corruption Blocked . | . . . . . Overload Shots . | . . . . . Overflow Damage . | . . . . . Projectiles . | . . . . . Explosions . | . . . . . Melee . | . . . . . Knockbacks . | . . . . . Impact . | . . . . . Kinetic . | . . . . . Secondary . | . . . . . Self-Inflicted Damage . | . . . . . Shots . | . . . . . Rammed 1 | 1 . . . . Targets Rammed 1 | 1 . . . . Kicked . | . . . . . Crushed . | . . . . . Highest Temperature 229 | 26 229 84 99 195 Average Temperature 82 | 15 95 42 53 98 Received Heat Transfer 182 | 6 . . 54 122 Siege Activations . | . . . . . Robots Corrupted . | . . . . . Combat Hostiles . | . . . . . Parts Fried . | . . . . . Impact Corruptions . | . . . . . Robots Melted . | . . . . . Combat Hostiles . | . . . . . Parts Melted . | . . . . . Heat Transferred 407 | . 222 37 37 111 Parts Sabotaged . | . . . . . Parts Stolen . | . . . . . Parts Stripped . | . . . . . Power Chain Reactions . | . . . . . Alert | -11 -10 -10 -9 -9 ------- Run | Yrd Mat Min Mat Min Peak Influence 131 | 20 115 94 131 89 Initial 46 | . 13 44 36 46 Average 71 | 3 87 88 68 47 Maximum Alert Level . | . . . . . Low Security (%) 100 | 100 100 100 100 100 Level 1 . | . . . . . Level 2 . | . . . . . Level 3 . | . . . . . Level 4 . | . . . . . Level 5 . | . . . . . High Security . | . . . . . Max Security . | . . . . . Squads Dispatched 1 | . . . . 1 Investigation . | . . . . . Extermination . | . . . . . Reinforcement 1 | . . . . 1 Assault . | . . . . . Garrison . | . . . . . Intercept . | . . . . . Searches Triggered . | . . . . . Construction Impeded 1 | . . . . 1 Haulers Reinforced . | . . . . . Active Scanning Responses . | . . . . . Cargo Convoy Interrupts . | . . . . . Stealth | -11 -10 -10 -9 -9 --------- Run | Yrd Mat Min Mat Min Distress Signals 1 | . . . 1 . Communications Jammed . | . . . . . Distress Signals . | . . . . . Times Spotted 32 | 1 9 2 8 12 Peak Tracking Total 8 | 1 4 2 8 5 Tactical Retreats 2 | . . 1 . 1 Traps | -11 -10 -10 -9 -9 ------- Run | Yrd Mat Min Mat Min Traps Triggered 2 | . . . 2 . Indirectly . | . . . . . Trap Hack Attempts 1 | . 1 . . . Triggered . | . . . . . Disarmed . | . . . . . Reprogrammed . | . . . . . Reused . | . . . . . Traps Extracted . | . . . . . Installed . | . . . . . Triggered . | . . . . . Machines | -11 -10 -10 -9 -9 ---------- Run | Yrd Mat Min Mat Min Machines Disabled . | . . . . . Max in Single Turn . | . . . . . Machines Repaired . | . . . . . Machines Dismantled . | . . . . . Machines Sabotaged . | . . . . . Overloaded Fab Kills . | . . . . . Hacking | -11 -10 -10 -9 -9 --------- Run | Yrd Mat Min Mat Min Machines Accessed 7 | . 4 1 2 . Terminals 3 | . 3 . . . Fabricators . | . . . . . Repair Stations 1 | . . . 1 . Recycling Units 2 | . 1 . 1 . Scanalyzers . | . . . . . Garrison Access . | . . . . . Total Hacks 15 | . 6 1 8 . Successful 10 | . 3 1 6 . Failed 5 | . 3 . 2 . Catastrophic 1 | . 1 . . . Database Lockouts . | . . . . . Manual . | . . . . . Terminals 5 | . 5 . . . Fabricators . | . . . . . Repair Stations 5 | . . . 5 . Recycling Units 4 | . 1 . 3 . Scanalyzers . | . . . . . Garrison Access . | . . . . . Terminal Hacks 3 | . 2 1 . . Prototype ID Bank 1 | . 1 . . . Open Door 1 | . . 1 . . Alert Level 1 | . 1 . . . Fabricator Hacks . | . . . . . Repair Station Hacks 4 | . . . 4 . Scan Component 2 | . . . 2 . Repair 2 | . . . 2 . Recycling Unit Hacks 3 | . 1 . 2 . Report Inventory 2 | . 1 . 1 . Retrieve Components 1 | . . . 1 . Scanalyzer . | . . . . . Garrison Access Hacks . | . . . . . Unauthorized Hacks . | . . . . . Terminals . | . . . . . Fabricators . | . . . . . Repair Stations . | . . . . . Recycling Units . | . . . . . Scanalyzers . | . . . . . Garrison Access . | . . . . . Data Cores Recovered 1 | . 1 . . . Used . | . . . . . Hacking Detections 4 | . 3 . 1 . Full Trace Events . | . . . . . Feedback Events . | . . . . . Feedback Blocked . | . . . . . Robot Schematics Acquired . | . . . . . Robots Built . | . . . . . Authchips . | . . . . . Time . | . . . . . Total Robot Build Rating . | . . . . . Part Schematics Acquired . | . . . . . Parts Built . | . . . . . Authchips . | . . . . . Time . | . . . . . Total Part Build Rating . | . . . . . Parts Repaired 2 | . . . 2 . Time 64 | . . . 64 . Parts Recycled . | . . . . . Recycled Matter . | . . . . . Retrieved Matter . | . . . . . Retrieved Components 2 | . . . 2 . Parts Scanalyzed . | . . . . . Part Schematics Acquired . | . . . . . Parts Damaged . | . . . . . Bothacking | -11 -10 -10 -9 -9 ------------ Run | Yrd Mat Min Mat Min Used RIF Installer . | . . . . . Robots Hacked . | . . . . . Non-combat . | . . . . . Combat . | . . . . . Robot Hacks Applied . | . . . . . Relay Couplers Released . | . . . . . Fabnet Peak Effective % . | . . . . . Robots Rewired . | . . . . . Allies Hacked . | . . . . . Hacks Repelled . | . . . . . Allies | -11 -10 -10 -9 -9 -------- Run | Yrd Mat Min Mat Min Total Allies . | . . . . . Largest Group . | . . . . . Highest-Rated Group . | . . . . . Highest-Rated Ally . | . . . . . Total Orders . | . . . . . Ally Attacks . | . . . . . Total Damage . | . . . . . Kills . | . . . . . Allies Corrupted . | . . . . . Allies Melted . | . . . . . Intel | -11 -10 -10 -9 -9 ------- Run | Yrd Mat Min Mat Min Robot Analysis Total . | . . . . . Derelict Logs Recovered 2 | . . 1 . 1 Drone Launches . | . . . . . Drone Recoveries . | . . . . . Exploration | -11 -10 -10 -9 -9 ------------- Run | Yrd Mat Min Mat Min Turns Passed 982 | 73 268 267 240 134 Spaces Moved 1497 | 73 259 643 366 156 Core 18 | 15 . . . 3 Treads 3 | . . . . 3 Legs 8 | . . . . 8 Wheels 89 | 58 31 . . . Hover . | . . . . . Flight 1379 | . 228 643 366 142 Fastest Speed 34 | 50 37 37 34 34 Average Speed 39 | 73 42 37 34 44 Slowest Speed 180 | 80 80 37 37 180 Overloaded Moves . | . . . . . Propulsion Burnouts . | . . . . . Robots Hopped 9 | . . 3 6 . Cave-ins Triggered . | . . . . . Exploration Rate (%) 48 | 9 45 97 35 54 Regions Visited 4 Branch Regions 2 Pre-discovered Areas 1 | . . 1 . . Known Exits Taken 3 | . 1 1 1 . Unknown Exits Taken 1 | 1 . . . . Scrap Searched 2 | . . 1 . 1 Spaces Dug . | . . . . . Terrain Destroyed 5 | . . . . 5 Melee . | . . . . . Projectile . | . . . . . AOE 5 | . . . . 5 Terrain Rammed . | . . . . . Walls Destroyed . | . . . . . Machines Disabled . | . . . . . Actions | -11 -10 -10 -9 -9 --------- Run | Yrd Mat Min Mat Min Total 1825 | 85 399 665 468 208 Wait 227 | 1 92 13 90 31 Move 1475 | 72 258 636 353 156 Hop 9 | . . 3 6 . Pick Up 26 | 3 9 4 7 3 Fast Attach 18 | 5 6 1 1 5 Attach 4 | . . . 2 2 Detach 1 | . 1 . . . Swap 13 | 1 7 2 2 1 Drop 25 | . 14 4 4 3 Fire 25 | 2 11 2 3 7 Melee . | . . . . . Ram 1 | 1 . . . . Kick . | . . . . . Crush . | . . . . . Escape Stasis . | . . . . . Rewire . | . . . . . Trap 1 | . 1 . . . Miscellaneous . | . . . . . Route ------- -11/Scrapyard -10/Materials -10/Mines (discovered 2 exits: *Mat x2) -9/Materials -9/Mines History --------- Turn | Location | Event 2 | -11/Scrapyard | Met Revision 17 52 | -11/Scrapyard | Discovered new exit (range 8) 74 | -11/Scrapyard | Entered Materials 306 | -10/Materials | Build established: Mutant 338 | -10/Materials | Discovered new exit (range 8) 341 | -10/Materials | Identified exit to Mines 342 | -10/Materials | Entered Mines 406 | -10/Mines | Found the Drone Emporium 407 | -10/Mines | Found Prototype Device 433 | -10/Mines | YI-UF0 nonchalantly dropped a Grenade Launcher on the ground 443 | -10/Mines | Found a damaged Exp. Sensor Array with a note attached 443 | -10/Mines | Identified Splice Drone Bay 575 | -10/Mines | Discovered new exit (range 7) 578 | -10/Mines | Identified exit to Materials 589 | -10/Mines | Found DCF Scrap (15 items) 594 | -10/Mines | Discovered exit to Materials (range 6) 609 | -10/Mines | Entered Materials 609 | -9/Materials | Evolved 2 slots: Propulsion x1, Utility x1 683 | -9/Materials | Repaired EM Shotgun 717 | -9/Materials | Repaired Particle Gun 775 | -9/Materials | Discovered new exit (range 18) 830 | -9/Materials | Identified exit to Mines 849 | -9/Materials | Entered Mines 850 | -9/Mines | Assembled infested the area 855 | -9/Mines | Assisted by a Guerilla fighting off Assembled 935 | -9/Mines | Joined a pair of Derelicts in attacking an 0b10 outpost 955 | -9/Mines | Core integrity fell below 50% 963 | -9/Mines | Lost 8 parts (1p3n1u3w) 980 | -9/Mines | Core integrity fell below 20% 983 | -9/Mines | Destroyed by D-53 Grenadier with Mini Grenade Launcher Last Messages --------------- 00941_ Acquired Beam Rifle. 00943_ G-34 Mercenary destroyed. 00943_ Acquired Lgt. Angular Momentum Engine. 00945_ Acquired 20 matter. 00945_ W4-V4O(g) destroyed. 00948_ Acquired Lgt. Treads. 00953_ Acquired Hvy. Assault Rifle. 00954_ Critical hit (Burn: +27). 00956_ Acquired Carbon-fiber Leg. 00956_ Machine disabled. 00961_ Dropped Lgt. Treads. 00961_ Dropped Imp. Flight Unit. 00963_ Lgt. Angular Momentum Engine destroyed. 00964_ Dropped EM Shotgun. 00965_ Acquired Lgt. Angular Momentum Engine. 00965_ Shield Generator destroyed. 00965_ Y-45 Defender destroyed. 00968_ Acquired 10 matter. 00969_ Carbon-fiber Leg destroyed. 00974_ Beam Rifle destroyed. Map ----- +----------------------------------------------------+ | | | | | | | | | | | | | | | | | | | | | | | | | | | | | | | ?????????????????????????????????????????????????? | | ?????????????????????????????????????????????????? | | ????????????????????????????????????###??????????? | | ?????????????????????????????????? ???????????? | | ????????????????????????????????? ?????????????? | | ???????????????????##??##????### ###????????????? | | ???????????## ????## ### #### ##???????????? | | ???????????# ???# ! #???????????? | | ???????????# ?# #???????????? | | ??????????## # ! #????????????? | | ???????# ## ??# %%! @ #?????????????? | | ???????? # = ###??????????????? | | ????????????????# = ##????????????????? | | ????????????????## [ ##????????????????? | | ?????????????????# #????????????????? | | ??# ???????????# #????????????????? | | ?? ?????????# d ## ##????????????????? | | ? ???????## # ######?###?????????????????? | | ? ?????#*g####??????????????????????????? | | # #####%!##????????????????????????????? | | # ##???????????????????????????? | | ?# ##??????????????????????????? | | ???####### ## #??????????????????????????? | | ?????????## ## #??????????????????????????? | | ??????????# ##?????????????????????????? | | ?# ###????# #?????????????????????????? | | ?# ###### #?????????????????????????? | | ????????# #?????????????????????????? | | ????????# ##?????????????????????????? | | ????????######## ##?????????????????????????? | | ??????????????## ##????????????????????????? | | ?????####????## #????????????????????????? | | ?????# #???# ###?#######??????????????? | | ?????? ##?# ### #??????????????? | | ???????# #?# % ## #?????? ????? | +----------------------------------------------------+ Best States ------------- Heat Dissipation 28 Coolant Potential 100 Energy Generation 18 Energy Capacity 250 Matter Stores 300 Matter Capacity 300 Sight Range 18 Robot Scan Range 14 Terrain Scan Density 10 Evasion (%) 63 Recoil Reduction 1 Item Schematics ----------------- None Robot Schematics ------------------ None Fabricated ------------ Nothing Alien Tech Used ----------------- None Achievements -------------- None Challenges ------------ None Game ------ Seed PulseGodFocus Manual? 0 Play Time 00:31:40 Cumulative 14.0 hours Start 2024.10.26 @ 20:41:49 End 2024.10.29 @ 16:43:08 Sessions 2 Manual Loads 0 Difficulty Rogue Special Mode None Game No. 24 Rogue 24 Adventurer 0 Explorer 0 Win Type - Total 0 Types 0/0/0/0/0/0/0/0/0 Lore% 3 Gallery% 16 Achievement% 10 Wizard Run 0 Options --------- Layout 1 ASCII 0 Keyboard 1 Movement Numpad Keybinds 0 Fullscreen 2 Font 24/Tamsyn Map View 50x35 Zoom Use 0% Tactical HUD 1 Map Filters NONE Filters NONE Steam 1 RUN: 5aacd28a-bb7c-4563-9572-75c56c55e9f0